[Event "Veteran-SM 65+ 2025"]
[Site "Uppsala, Sweden"]
[Date "2025.07.04"]
[Round "7.1"]
[White "Marttala, Thomas"]
[Black "Franchuck, Ivan"]
[Result "1/2-1/2"]
[TimeControl "90 min for 40 move + 30 min with an increment of 30 sec starting move 1"]
[WhiteFideId "1701118"]
[BlackFideId "14140187"]
[WhiteElo "2123"]
[BlackElo "2006"]

1. e4 {[%clk 01:30:17]} {[%emt 00:00:41]} Nf6 {[%clk 01:30:28]} {[%emt
00:00:33]} 2. e5 {[%clk 01:26:58]} {[%emt 00:03:49]} Nd5 {[%clk 01:30:49]}
{[%emt 00:00:10]} 3. Nc3 {[%clk 01:26:29]} {[%emt 00:00:57]} Nxc3 {[%clk
01:30:50]} {[%emt 00:00:31]} 4. dxc3 {[%clk 01:26:19]} {[%emt 00:00:38]} d6
{[%clk 01:31:04]} {[%emt 00:00:17]} 5. Bf4 {[%clk 01:26:24]} {[%emt 00:00:24]}
Nc6 {[%clk 01:29:43]} {[%emt 00:01:52]} 6. Nf3 {[%clk 01:23:45]} {[%emt
00:03:08]} g6 {[%clk 01:29:50]} {[%emt 00:00:23]} 7. Bb5 {[%clk 01:19:04]}
{[%emt 00:05:12]} Bd7 {[%clk 01:29:51]} {[%emt 00:00:29]} 8. Qe2 {[%clk
01:18:51]} {[%emt 00:00:42]} Bg4 {[%clk 01:25:37]} {[%emt 00:04:44]} 9. O-O-O
{[%clk 01:12:32]} {[%emt 00:06:49]} e6 {[%clk 01:22:37]} {[%emt 00:03:32]} 10.
h3 {[%clk 01:07:57]} {[%emt 00:05:04]} Bxf3 {[%clk 01:22:16]} {[%emt 00:00:51]}
11. Qxf3 {[%clk 01:08:17]} {[%emt 00:00:09]} Qd7 {[%clk 01:22:20]} {[%emt
00:00:26]} 12. exd6 {[%clk 00:56:53]} {[%emt 00:11:54]} cxd6 {[%clk 01:21:50]}
{[%emt 00:01:01]} 13. Be5 {[%clk 00:51:03]} {[%emt 00:06:19]} Rg8 {[%clk
01:21:50]} {[%emt 00:00:30]} 14. c4 {[%clk 00:45:04]} {[%emt 00:06:28]} O-O-O
{[%clk 01:20:34]} {[%emt 00:01:47]} 15. Bxd6 {[%clk 00:42:20]} {[%emt
00:03:14]} Bxd6 {[%clk 01:20:47]} {[%emt 00:00:18]} 16. c5 {[%clk 00:42:45]}
{[%emt 00:00:05]} Qc7 {[%clk 01:18:35]} {[%emt 00:02:42]} 17. cxd6 {[%clk
00:42:21]} {[%emt 00:00:54]} Rxd6 {[%clk 01:18:53]} {[%emt 00:00:12]} 18. Rxd6
{[%clk 00:41:17]} {[%emt 00:01:33]} Qxd6 {[%clk 01:19:06]} {[%emt 00:00:18]} 19.
Bxc6 {[%clk 00:41:22]} {[%emt 00:00:24]} 1/2-1/2

[Event "Veteran-SM 65+ 2025"]
[Site "Uppsala, Sweden"]
[Date "2025.07.04"]
[Round "7.2"]
[White "Andersson, Anders"]
[Black "Sigeman, Johan"]
[Result "1/2-1/2"]
[TimeControl "90 min for 40 move + 30 min with an increment of 30 sec starting move 1"]
[WhiteFideId "1738259"]
[BlackFideId "1705601"]
[WhiteElo "1991"]
[BlackElo "2012"]

1. e4 {[%clk 01:30:54]} {[%emt 00:00:05]} e5 {[%clk 01:30:54]} {[%emt
00:00:06]} 2. Nf3 {[%clk 01:31:09]} {[%emt 00:00:15]} Nc6 {[%clk 01:31:11]}
{[%emt 00:00:13]} 3. Bc4 {[%clk 01:30:56]} {[%emt 00:00:42]} Nf6 {[%clk
01:31:24]} {[%emt 00:00:17]} 4. d3 {[%clk 01:30:57]} {[%emt 00:00:30]} h6
{[%clk 01:28:31]} {[%emt 00:03:23]} 5. c3 {[%clk 01:29:47]} {[%emt 00:01:40]}
d6 {[%clk 01:27:28]} {[%emt 00:01:34]} 6. h3 {[%clk 01:27:09]} {[%emt
00:03:08]} g5 {[%clk 01:23:06]} {[%emt 00:04:51]} 7. Nbd2 {[%clk 01:18:01]}
{[%emt 00:09:38]} Bg7 {[%clk 01:22:00]} {[%emt 00:01:36]} 8. Nf1 {[%clk
01:06:24]} {[%emt 00:12:07]} Na5 {[%clk 01:07:16]} {[%emt 00:15:15]} 9. Ne3
{[%clk 01:03:21]} {[%emt 00:03:33]} Nxc4 {[%clk 01:06:56]} {[%emt 00:00:49]} 10.
Nxc4 {[%clk 01:03:38]} {[%emt 00:00:13]} Be6 {[%clk 01:04:15]} {[%emt
00:03:10]} 11. Ne3 {[%clk 01:03:33]} {[%emt 00:00:35]} d5 {[%clk 00:55:48]}
{[%emt 00:08:58]} 12. Nf5 {[%clk 00:56:16]} {[%emt 00:07:48]} Bxf5 {[%clk
00:51:27]} {[%emt 00:04:50]} 1/2-1/2

[Event "Veteran-SM 65+ 2025"]
[Site "Uppsala, Sweden"]
[Date "2025.07.04"]
[Round "7.3"]
[White "Korning, Peter"]
[Black "Larsson, Per-Olov"]
[Result "1/2-1/2"]
[TimeControl "90 min for 40 move + 30 min with an increment of 30 sec starting move 1"]
[WhiteFideId "1723332"]
[BlackFideId "1717774"]
[WhiteElo "1944"]
[BlackElo "1914"]

1. e4 {[%clk 01:30:30]} {[%emt 00:00:29]} c5 {[%clk 01:30:42]} {[%emt
00:00:18]} 2. d4 {[%clk 01:29:59]} {[%emt 00:01:00]} cxd4 {[%clk 01:30:39]}
{[%emt 00:00:33]} 3. c3 {[%clk 01:30:22]} {[%emt 00:00:08]} dxc3 {[%clk
01:30:08]} {[%emt 00:01:01]} 4. Nxc3 {[%clk 01:30:49]} {[%emt 00:00:03]} Nc6
{[%clk 01:30:09]} {[%emt 00:00:30]} 5. Nf3 {[%clk 01:31:07]} {[%emt 00:00:10]}
d6 {[%clk 01:29:58]} {[%emt 00:00:42]} 6. Bc4 {[%clk 01:30:47]} {[%emt
00:00:49]} a6 {[%clk 01:29:50]} {[%emt 00:00:40]} 7. O-O {[%clk 01:30:32]}
{[%emt 00:00:44]} Nf6 {[%clk 01:29:13]} {[%emt 00:01:08]} 8. Bf4 {[%clk
01:29:54]} {[%emt 00:01:06]} Bg4 {[%clk 01:27:23]} {[%emt 00:02:22]} 9. h3
{[%clk 01:29:14]} {[%emt 00:01:08]} Bxf3 {[%clk 01:26:26]} {[%emt 00:01:28]} 10.
Qxf3 {[%clk 01:29:35]} {[%emt 00:00:10]} e6 {[%clk 01:24:18]} {[%emt 00:02:38]}
11. Rfd1 {[%clk 01:26:35]} {[%emt 00:03:28]} Qb8 {[%clk 01:22:37]} {[%emt
00:02:12]} 12. Be2 {[%clk 01:26:41]} {[%emt 00:00:24]} Be7 {[%clk 01:18:44]}
{[%emt 00:04:24]} 13. Qg3 {[%clk 01:18:53]} {[%emt 00:08:17]} O-O {[%clk
01:18:06]} {[%emt 00:01:08]} 14. Bxd6 {[%clk 01:17:11]} {[%emt 00:02:12]} Bxd6
{[%clk 01:18:14]} {[%emt 00:00:22]} 15. Qxd6 {[%clk 01:15:23]} {[%emt
00:02:18]} Qxd6 {[%clk 01:16:51]} {[%emt 00:01:54]} 16. Rxd6 {[%clk 01:15:49]}
{[%emt 00:00:03]} Rfd8 {[%clk 01:16:52]} {[%emt 00:00:29]} 17. Rad1 {[%clk
01:15:20]} {[%emt 00:00:59]} Rxd6 {[%clk 01:15:51]} {[%emt 00:01:33]} 18. Rxd6
{[%clk 01:15:48]} {[%emt 00:00:01]} Rd8 {[%clk 01:09:56]} {[%emt 00:06:25]} 19.
Rxd8+ {[%clk 01:15:40]} {[%emt 00:00:37]} Nxd8 {[%clk 01:10:20]} {[%emt
00:00:07]} 20. e5 {[%clk 01:14:21]} {[%emt 00:01:48]} Nd7 {[%clk 01:09:32]}
{[%emt 00:01:19]} 21. f4 {[%clk 01:14:18]} {[%emt 00:00:32]} f6 {[%clk
01:09:31]} {[%emt 00:00:31]} 22. exf6 {[%clk 01:12:13]} {[%emt 00:02:35]} Nxf6
{[%clk 01:08:29]} {[%emt 00:01:32]} 23. Bf3 {[%clk 01:03:17]} {[%emt 00:09:27]}
Kf7 {[%clk 01:05:57]} {[%emt 00:03:01]} 24. Kf2 {[%clk 00:58:03]} {[%emt
00:05:44]} Ke7 {[%clk 01:05:39]} {[%emt 00:00:49]} 25. Ke3 {[%clk 00:49:48]}
{[%emt 00:08:42]} Kd6 {[%clk 01:03:31]} {[%emt 00:02:41]} 26. Ne4+ {[%clk
00:48:42]} {[%emt 00:01:34]} Nxe4 {[%clk 01:03:10]} {[%emt 00:00:54]} 27. Bxe4
{[%clk 00:48:53]} {[%emt 00:00:17]} h6 {[%clk 01:03:25]} {[%emt 00:00:16]} 28.
Kd4 {[%clk 00:45:03]} {[%emt 00:04:17]} g5 {[%clk 00:57:31]} {[%emt 00:06:27]}
29. fxg5 {[%clk 00:42:01]} {[%emt 00:03:31]} hxg5 {[%clk 00:57:52]} {[%emt
00:00:09]} 30. g3 {[%clk 00:42:07]} {[%emt 00:00:24]} b6 {[%clk 00:55:24]}
{[%emt 00:02:59]} 31. h4 {[%clk 00:36:01]} {[%emt 00:06:35]} gxh4 {[%clk
00:51:12]} {[%emt 00:04:43]} 32. gxh4 {[%clk 00:36:28]} {[%emt 00:00:03]} Nf7
{[%clk 00:50:48]} {[%emt 00:00:53]} 33. Bb7 {[%clk 00:30:28]} {[%emt 00:06:30]}
Nh6 {[%clk 00:49:12]} {[%emt 00:02:07]} 34. Be4 {[%clk 00:25:36]} {[%emt
00:05:21]} Ng4 {[%clk 00:46:49]} {[%emt 00:02:53]} 35. Bf3 {[%clk 00:21:41]}
{[%emt 00:04:24]} Nh6 {[%clk 00:46:36]} {[%emt 00:00:45]} 36. Ke4 {[%clk
00:20:40]} {[%emt 00:01:30]} Ke7 {[%clk 00:40:03]} {[%emt 00:07:05]} 37. Be2
{[%clk 00:20:00]} {[%emt 00:01:07]} a5 {[%clk 00:38:11]} {[%emt 00:02:23]} 38.
h5 {[%clk 00:10:18]} {[%emt 00:10:12]} Nf7 {[%clk 00:33:18]} {[%emt 00:05:23]}
39. Kd4 {[%clk 00:07:44]} {[%emt 00:03:03]} Kd7 {[%clk 00:27:15]} {[%emt
00:06:35]} 40. Bb5+ {[%clk 00:04:10]} {[%emt 00:04:03]} Ke7 {[%clk 00:26:31]}
{[%emt 00:01:15]} 41. Bd3 {[%clk 00:29:21]} {[%emt 00:05:15]} Kf6 {[%clk
00:48:55]} {[%emt 00:08:09]} 42. Bg6 {[%clk 00:25:51]} {[%emt 00:03:58]} Nd6
{[%clk 00:46:41]} {[%emt 00:02:46]} 43. Bd3 {[%clk 00:23:57]} {[%emt 00:02:23]}
Nf7 {[%clk 00:46:49]} {[%emt 00:00:24]} 44. h6 {[%clk 00:18:05]} {[%emt
00:06:21]} Nxh6 {[%clk 00:44:35]} {[%emt 00:02:44]} 45. Kc4 {[%clk 00:18:22]}
{[%emt 00:00:13]} Ng4 {[%clk 00:43:39]} {[%emt 00:01:26]} 46. Kb5 {[%clk
00:18:32]} {[%emt 00:00:20]} Ne5 {[%clk 00:43:31]} {[%emt 00:00:38]} 47. Be2
{[%clk 00:18:46]} {[%emt 00:00:16]} Nd7 {[%clk 00:42:32]} {[%emt 00:01:30]} 48.
Kc6 {[%clk 00:19:05]} {[%emt 00:00:10]} Ke7 {[%clk 00:41:51]} {[%emt 00:01:12]}
49. Kc7 {[%clk 00:19:23]} {[%emt 00:00:12]} e5 {[%clk 00:33:27]} {[%emt
00:08:54]} 50. Bb5 {[%clk 00:19:04]} {[%emt 00:00:48]} Nf6 {[%clk 00:33:21]}
{[%emt 00:00:37]} 51. Kxb6 {[%clk 00:19:22]} {[%emt 00:00:13]} e4 {[%clk
00:33:09]} {[%emt 00:00:41]} 52. Kxa5 {[%clk 00:19:27]} {[%emt 00:00:25]} Kd6
{[%clk 00:32:23]} {[%emt 00:01:16]} 53. Kb4 {[%clk 00:17:51]} {[%emt 00:02:06]}
e3 {[%clk 00:25:42]} {[%emt 00:07:11]} 54. Kc3 {[%clk 00:14:15]} {[%emt
00:04:04]} Kc5 {[%clk 00:23:40]} {[%emt 00:02:33]} 55. Be2 {[%clk 00:13:14]}
{[%emt 00:01:29]} Nd5+ {[%clk 00:23:43]} {[%emt 00:00:29]} 56. Kc2 {[%clk
00:09:31]} {[%emt 00:04:12]} Nb4+ {[%clk 00:23:43]} {[%emt 00:00:31]} 57. Kb3
{[%clk 00:08:24]} {[%emt 00:01:35]} Nd5 {[%clk 00:24:01]} {[%emt 00:00:15]} 58.
Kc2 {[%clk 00:06:32]} {[%emt 00:02:22]} Nb4+ {[%clk 00:24:16]} {[%emt
00:00:15]} 59. Kb3 {[%clk 00:05:58]} {[%emt 00:01:03]} Nd5 {[%clk 00:24:38]}
{[%emt 00:00:09]} 60. Kc2 {[%clk 00:04:11]} {[%emt 00:02:17]} Nb4+ {[%clk
00:24:49]} {[%emt 00:00:18]} 61. Kb3 {[%clk 00:04:25]} {[%emt 00:00:16]}
1/2-1/2

[Event "Veteran-SM 65+ 2025"]
[Site "Uppsala, Sweden"]
[Date "2025.07.04"]
[Round "7.4"]
[White "Hogberg, Thomas"]
[Black "Johansson, Jan"]
[Result "0-1"]
[TimeControl "90 min for 40 move + 30 min with an increment of 30 sec starting move 1"]
[BlackTitle "IM"]
[WhiteFideId "1706039"]
[BlackFideId "1700103"]
[WhiteElo "1979"]
[BlackElo "2258"]

1. b3 {[%clk 01:30:35]} {[%emt 00:00:25]} e5 {[%clk 01:29:21]} {[%emt
00:01:39]} 2. Bb2 {[%clk 01:30:53]} {[%emt 00:00:12]} Nc6 {[%clk 01:29:41]}
{[%emt 00:00:10]} 3. e3 {[%clk 01:31:16]} {[%emt 00:00:07]} Nf6 {[%clk
01:09:09]} {[%emt 00:21:02]} 4. c4 {[%clk 01:25:14]} {[%emt 00:06:31]} d5
{[%clk 01:02:45]} {[%emt 00:06:56]} 5. cxd5 {[%clk 01:24:49]} {[%emt 00:00:54]}
Nxd5 {[%clk 01:03:09]} {[%emt 00:00:06]} 6. a3 {[%clk 01:25:13]} {[%emt
00:00:06]} Bd6 {[%clk 01:02:17]} {[%emt 00:01:22]} 7. Qc2 {[%clk 01:20:52]}
{[%emt 00:04:51]} O-O {[%clk 00:57:05]} {[%emt 00:05:42]} 8. Nf3 {[%clk
01:19:20]} {[%emt 00:01:59]} Re8 {[%clk 00:46:51]} {[%emt 00:10:47]} 9. Nc3
{[%clk 01:14:50]} {[%emt 00:05:00]} Nxc3 {[%clk 00:39:43]} {[%emt 00:07:37]} 10.
Qxc3 {[%clk 01:14:35]} {[%emt 00:00:46]} Qf6 {[%clk 00:38:46]} {[%emt
00:01:27]} 11. Be2 {[%clk 01:10:16]} {[%emt 00:04:48]} a5 {[%clk 00:32:44]}
{[%emt 00:06:32]} 12. h3 {[%clk 01:04:41]} {[%emt 00:06:05]} Bf5 {[%clk
00:20:36]} {[%emt 00:12:39]} 13. Nh2 {[%clk 00:53:04]} {[%emt 00:12:07]} Qg6
{[%clk 00:14:10]} {[%emt 00:06:57]} 14. g4 {[%clk 00:50:01]} {[%emt 00:03:32]}
Bd7 {[%clk 00:13:27]} {[%emt 00:01:12]} 15. f3 {[%clk 00:37:03]} {[%emt
00:13:29]} Qf6 {[%clk 00:13:28]} {[%emt 00:00:29]} 16. Kf2 {[%clk 00:35:14]}
{[%emt 00:02:19]} Nd4 {[%clk 00:07:48]} {[%emt 00:06:10]} 17. Bd1 {[%clk
00:31:29]} {[%emt 00:04:15]} Qh4+ {[%clk 00:04:55]} {[%emt 00:03:23]} 18. Kg2
{[%clk 00:31:33]} {[%emt 00:00:25]} Bc6 {[%clk 00:05:00]} {[%emt 00:00:26]} 19.
Nf1 {[%clk 00:24:17]} {[%emt 00:07:45]} Nb5 {[%clk 00:05:27]} {[%emt 00:00:04]}
20. Qc4 {[%clk 00:23:47]} {[%emt 00:01:00]} e4 {[%clk 00:05:47]} {[%emt
00:00:10]} 21. f4 {[%clk 00:24:08]} {[%emt 00:00:08]} Bxf4 {[%clk 00:06:08]}
{[%emt 00:00:09]} 22. Qe2 {[%clk 00:21:20]} {[%emt 00:03:18]} Be5 {[%clk
00:06:30]} {[%emt 00:00:08]} 23. Bxe5 {[%clk 00:20:39]} {[%emt 00:01:12]} Rxe5
{[%clk 00:06:53]} {[%emt 00:00:07]} 24. Ng3 {[%clk 00:21:00]} {[%emt 00:00:08]}
g6 {[%clk 00:06:52]} {[%emt 00:00:32]} 25. Rf1 {[%clk 00:20:11]} {[%emt
00:01:18]} Rd8 {[%clk 00:07:00]} {[%emt 00:00:22]} 26. Rf4 {[%clk 00:18:34]}
{[%emt 00:02:07]} Red5 {[%clk 00:06:38]} {[%emt 00:00:52]} 27. Nf1 {[%clk
00:18:55]} {[%emt 00:00:09]} Rd3 {[%clk 00:05:17]} {[%emt 00:01:51]} 28. Bc2
{[%clk 00:18:59]} {[%emt 00:00:27]} Nd4 {[%clk 00:04:16]} {[%emt 00:01:31]} 29.
Qd1 {[%clk 00:16:03]} {[%emt 00:03:24]} Ne6 {[%clk 00:04:40]} {[%emt 00:00:08]}
30. Rf2 {[%clk 00:11:13]} {[%emt 00:05:19]} Ng5 {[%clk 00:05:03]} {[%emt
00:00:07]} 31. Nh2 {[%clk 00:11:04]} {[%emt 00:00:41]} Qxh3+ {[%clk 00:04:21]}
{[%emt 00:01:11]} 32. Kg1 {[%clk 00:10:39]} {[%emt 00:00:54]} Qg3+ {[%clk
00:04:07]} {[%emt 00:00:44]} 33. Rg2 {[%clk 00:10:05]} {[%emt 00:01:05]} Qxg2+
{[%clk 00:04:23]} {[%emt 00:00:14]} 34. Kxg2 {[%clk 00:10:11]} {[%emt
00:00:24]} Rxd2+ {[%clk 00:04:47]} {[%emt 00:00:05]} 35. Kg3 {[%clk 00:10:28]}
{[%emt 00:00:14]} Rxd1 {[%clk 00:05:12]} {[%emt 00:00:05]} 0-1

[Event "Veteran-SM 65+ 2025"]
[Site "Uppsala, Sweden"]
[Date "2025.07.04"]
[Round "7.5"]
[White "Carlsson, Ingvar"]
[Black "Dolata, Henryk"]
[Result "1/2-1/2"]
[TimeControl "90 min for 40 move + 30 min with an increment of 30 sec starting move 1"]
[WhiteFideId "1702670"]
[BlackFideId "1709046"]
[WhiteElo "1987"]
[BlackElo "1958"]

1. e4 {[%clk 01:30:54]} {[%emt 00:00:04]} e6 {[%clk 01:30:30]} {[%emt
00:00:31]} 2. d4 {[%clk 01:31:10]} {[%emt 00:00:13]} d5 {[%clk 01:30:52]}
{[%emt 00:00:09]} 3. Nc3 {[%clk 01:31:32]} {[%emt 00:00:07]} dxe4 {[%clk
01:29:55]} {[%emt 00:01:28]} 4. Nxe4 {[%clk 01:31:36]} {[%emt 00:00:24]} Bd7
{[%clk 01:30:19]} {[%emt 00:00:08]} 5. Nf3 {[%clk 01:30:56]} {[%emt 00:01:09]}
Bc6 {[%clk 01:30:40]} {[%emt 00:00:10]} 6. Bd3 {[%clk 01:30:56]} {[%emt
00:00:30]} Nd7 {[%clk 01:31:01]} {[%emt 00:00:09]} 7. O-O {[%clk 01:30:41]}
{[%emt 00:00:44]} Ngf6 {[%clk 01:31:23]} {[%emt 00:00:09]} 8. Ned2 {[%clk
01:25:41]} {[%emt 00:05:30]} Be7 {[%clk 01:29:28]} {[%emt 00:02:25]} 9. c4
{[%clk 01:24:13]} {[%emt 00:01:57]} O-O {[%clk 01:28:51]} {[%emt 00:01:08]} 10.
b3 {[%clk 01:24:21]} {[%emt 00:00:21]} b6 {[%clk 01:28:32]} {[%emt 00:00:50]}
11. Bb2 {[%clk 01:22:48]} {[%emt 00:02:03]} Bb7 {[%clk 01:25:59]} {[%emt
00:03:04]} 12. Qc2 {[%clk 01:07:27]} {[%emt 00:15:50]} c5 {[%clk 01:23:17]}
{[%emt 00:03:12]} 13. Ng5 {[%clk 00:56:21]} {[%emt 00:11:35]} h6 {[%clk
01:16:33]} {[%emt 00:07:14]} 14. Nh7 {[%clk 00:45:50]} {[%emt 00:11:01]} Re8
{[%clk 01:07:30]} {[%emt 00:09:33]} 15. Nxf6+ {[%clk 00:45:40]} {[%emt
00:00:39]} Bxf6 {[%clk 01:06:07]} {[%emt 00:01:54]} 16. Ne4 {[%clk 00:31:59]}
{[%emt 00:14:11]} Be7 {[%clk 01:03:23]} {[%emt 00:03:14]} 17. Rad1 {[%clk
00:28:44]} {[%emt 00:03:45]} Qc7 {[%clk 00:56:00]} {[%emt 00:07:54]} 18. dxc5
{[%clk 00:26:12]} {[%emt 00:03:01]} bxc5 {[%clk 00:52:56]} {[%emt 00:03:34]} 19.
Qe2 {[%clk 00:23:11]} {[%emt 00:03:30]} Rad8 {[%clk 00:47:45]} {[%emt
00:05:43]} 20. Qg4 {[%clk 00:21:18]} {[%emt 00:02:21]} e5 {[%clk 00:40:59]}
{[%emt 00:07:17]} 21. Bc2 {[%clk 00:20:09]} {[%emt 00:01:39]} Nf6 {[%clk
00:35:35]} {[%emt 00:05:53]} 22. Nxf6+ {[%clk 00:19:45]} {[%emt 00:00:55]} Bxf6
{[%clk 00:36:05]} 23. Rfe1 {[%clk 00:13:15]} {[%emt 00:06:59]} Rxd1 {[%clk
00:32:47]} {[%emt 00:03:48]} 24. Rxd1 {[%clk 00:13:35]} {[%emt 00:00:10]} Rd8
{[%clk 00:33:06]} {[%emt 00:00:10]} 25. Qe2 {[%clk 00:11:02]} {[%emt 00:18:29]}
1/2-1/2

[Event "Veteran-SM 65+ 2025"]
[Site "Uppsala, Sweden"]
[Date "2025.07.04"]
[Round "7.6"]
[White "Gromark, Per-Olof"]
[Black "Malmdin, Nils-Ake"]
[Result "0-1"]
[TimeControl "90 min for 40 move + 30 min with an increment of 30 sec starting move 1"]
[BlackTitle "FM"]
[WhiteFideId "1722433"]
[BlackFideId "1701584"]
[WhiteElo "1915"]
[BlackElo "2103"]

1. c4 {[%clk 01:30:54]} {[%emt 00:00:05]} e5 {[%clk 01:28:09]} {[%emt
00:02:52]} 2. Nc3 {[%clk 01:31:12]} {[%emt 00:00:12]} Nf6 {[%clk 01:28:28]}
{[%emt 00:00:10]} 3. g3 {[%clk 01:29:24]} {[%emt 00:02:19]} Be7 {[%clk
01:21:34]} {[%emt 00:07:22]} 4. Bg2 {[%clk 01:29:18]} {[%emt 00:00:37]} c6
{[%clk 01:21:55]} {[%emt 00:00:10]} 5. Nf3 {[%clk 01:27:13]} {[%emt 00:02:35]}
d6 {[%clk 01:22:07]} {[%emt 00:00:17]} 6. d4 {[%clk 01:25:41]} {[%emt
00:02:03]} Qc7 {[%clk 01:22:07]} {[%emt 00:00:29]} 7. O-O {[%clk 01:24:04]}
{[%emt 00:02:08]} Nbd7 {[%clk 01:18:01]} {[%emt 00:04:34]} 8. Qc2 {[%clk
01:18:31]} {[%emt 00:06:04]} O-O {[%clk 01:14:59]} {[%emt 00:03:31]} 9. b3
{[%clk 01:16:53]} {[%emt 00:02:10]} Re8 {[%clk 01:14:07]} {[%emt 00:01:21]} 10.
Ba3 {[%clk 01:13:53]} {[%emt 00:03:31]} Bf8 {[%clk 01:08:34]} {[%emt 00:06:02]}
11. dxe5 {[%clk 01:11:45]} {[%emt 00:02:38]} dxe5 {[%clk 01:07:31]} {[%emt
00:01:34]} 12. Bxf8 {[%clk 01:11:53]} {[%emt 00:00:22]} Nxf8 {[%clk 01:07:48]}
{[%emt 00:00:12]} 13. Ng5 {[%clk 01:05:39]} {[%emt 00:06:44]} h6 {[%clk
01:07:47]} {[%emt 00:00:31]} 14. Nge4 {[%clk 01:03:43]} {[%emt 00:02:26]} Nxe4
{[%clk 01:08:04]} {[%emt 00:00:13]} 15. Nxe4 {[%clk 01:02:56]} {[%emt
00:01:18]} Ne6 {[%clk 01:02:15]} {[%emt 00:06:18]} 16. e3 {[%clk 01:02:41]}
{[%emt 00:00:45]} f5 {[%clk 00:59:19]} {[%emt 00:03:25]} 17. Nc3 {[%clk
01:02:34]} {[%emt 00:00:38]} Qf7 {[%clk 00:52:02]} {[%emt 00:07:47]} 18. b4
{[%clk 00:54:06]} {[%emt 00:08:59]} f4 {[%clk 00:41:40]} {[%emt 00:10:51]} 19.
Be4 {[%clk 00:50:58]} {[%emt 00:03:39]} Nf8 {[%clk 00:41:53]} {[%emt 00:00:16]}
20. c5 {[%clk 00:41:08]} {[%emt 00:10:21]} f3 {[%clk 00:30:06]} {[%emt
00:12:17]} 21. Rfe1 {[%clk 00:32:33]} {[%emt 00:09:05]} Bh3 {[%clk 00:26:04]}
{[%emt 00:04:30]} 22. Bd3 {[%clk 00:29:25]} {[%emt 00:03:40]} Qh5 {[%clk
00:17:31]} {[%emt 00:09:02]} 23. Qb3+ {[%clk 00:27:30]} {[%emt 00:02:26]} Kh8
{[%clk 00:16:12]} {[%emt 00:01:48]} 24. Qc4 {[%clk 00:27:51]} {[%emt 00:00:10]}
e4 {[%clk 00:12:51]} {[%emt 00:03:50]} 25. Bf1 {[%clk 00:27:47]} {[%emt
00:00:35]} Bf5 {[%clk 00:12:32]} {[%emt 00:00:48]} 26. Red1 {[%clk 00:24:59]}
{[%emt 00:03:19]} Ng6 {[%clk 00:11:44]} {[%emt 00:01:19]} 27. Rd4 {[%clk
00:14:33]} {[%emt 00:10:55]} Ne5 {[%clk 00:11:44]} {[%emt 00:00:29]} 28. Qb3
{[%clk 00:14:56]} {[%emt 00:00:07]} Ng4 {[%clk 00:11:41]} {[%emt 00:00:33]} 29.
h3 {[%clk 00:14:08]} {[%emt 00:01:19]} Nf6 {[%clk 00:11:57]} {[%emt 00:00:13]}
30. h4 {[%clk 00:11:08]} {[%emt 00:03:31]} g5 {[%emt 00:03:18]} 0-1